Cogmind - Beta 14 @@@ ROGUE MODE // 2024.08.27 @ 14:58:46 Player: human Result: Destroyed by as-69796 with Assembled Blade Performance ------------- Evolutions (0) 0 Regions Visited (2) 400 Robots Destroyed (10) 50 Value Destroyed (275) 275 Prototype IDs (0) 0 Alien Tech Used (0) 0 Bonus (-36) -36 TOTAL SCORE: 689 Bonus ------- Friendly Fire -36 Cogmind --------- Core Integrity 0/250 Matter 287/300 Energy 80/100 System Corruption 0% Temperature Cool (32) Movement Core (150) Ox2 Location -10/Mines Parts ------- > --- POWER (1) -------- (None) > --- PROPULSION (2) --- (None) > --- UTILITY (2) ------ Small Storage Unit > --- WEAPON (2) ------- Particle Gun > --- INVENTORY (8) ---- Light Treads Light Treads Light Assault Rifle Peak State ------------ > --- POWER ------------ Ion Engine > --- PROPULSION ------- Aluminum Leg Aluminum Leg > --- UTILITY ---------- Small Storage Unit > --- WEAPON ----------- Medium Laser Light Assault Rifle > --- INVENTORY -------- Light Ion Engine [Rating: 6] Favorites ----------- Power Ion Engine Engine Ion Engine Propulsion Aluminum Leg Leg Aluminum Leg Utility Small Storage Unit Storage Small Storage Unit Weapon Light Assault Rifle Energy Gun Medium Laser Ballistic Gun Light Assault Rifle Launcher Grenade Launcher Build | -11 -10 -10 ------- Run | Yrd Mat Min Slots Evolved . | . . . Power . | . . . Propulsion . | . . . Utility . | . . . Weapon . | . . . Parts Attached 12 | 6 1 5 Power 2 | 1 . 1 Engine 2 | 1 . 1 Core . | . . . Reactor . | . . . Propulsion 3 | 2 . 1 Treads . | . . . Leg 3 | 2 . 1 Wheel . | . . . Hover . | . . . Flight . | . . . Utility 1 | 1 . . Device . | . . . Storage 1 | 1 . . Processor . | . . . Hackware . | . . . Protection . | . . . Artifact . | . . . Weapon 6 | 2 1 3 Energy Gun 2 | 1 . 1 Energy Cannon . | . . . Ballistic Gun 2 | 1 . 1 Ballistic Cannon . | . . . Launcher 2 | . 1 1 Special Weapon . | . . . Impact Weapon . | . . . Slashing Weapon . | . . . Piercing Weapon . | . . . Special Melee Weapon . | . . . Unidentified Prototypes . | . . . Parts Lost 6 | . . 6 Power 2 | . . 2 Propulsion 3 | . . 3 Utility . | . . . Weapon 1 | . . 1 Highest Loss Streak 3 | . . 3 To Critical Strikes . | . . . Average Slot Usage (%) 76 | . 85 74 Engine 6 | . 14 4 Leg 27 | . 28 26 Storage 14 | . 14 14 Energy Gun 14 | . 14 14 Ballistic Gun 12 | . 9 14 Launcher 1 | . 4 . Peak Build Rating 6 | 6 6 6 Average Rating 5 | 4 6 5 On Entrance 4 | . 6 6 Naked Turns . | . . . Heaviest Build 15 | 13 15 11 Greatest Support 20 | 20 20 20 Greatest Overweight (x) 1 | . . 1 Average Overweight (x) . | . . . Largest Inventory Capacity 8 | 8 8 8 Average Capacity 7 | 7 8 8 Most Carried 4 | 4 4 4 Average Carried 3 | 2 3 3 Final Capacity 8 | 8 8 8 Final Carried 4 | 3 4 3 Class Distribution -------------------- 100% | Mutant Dominant Class ---------------- Mutant | -10/Materials Mutant | -10/Mines Resources | -11 -10 -10 ----------- Run | Yrd Mat Min Matter Collected 329 | 221 11 97 Remotely . | . . . Salvage Created 259 | . 55 204 Parts 17 | . 5 12 Haulers Intercepted . | . . . Recyclers Shooed 1 | . . 1 Parts Field Recycled . | . . . Retrieved Matter . | . . . Parts Self-Destructed . | . . . Prevented . | . . . Kills | -11 -10 -10 ------- Run | Yrd Mat Min Combat Hostiles Destroyed 7 | . 2 5 Guns 4 | . 1 3 AOE 3 | . 1 2 Classes Destroyed 4 | . 3 1 Worker 2 | . 2 . Builder 2 | . 1 1 Grunt 6 | . 2 4 Assembled 1 | . . 1 Best Kill Streak 5 | . 5 2 Combat Bots Only 2 | . 2 1 Max Kills in Single Turn 4 | . 4 1 Gunslinging . | . . . Exploded 1 | . 1 1 Melee . | . . . Uniques/NPCs Destroyed . | . . . Combat | -11 -10 -10 -------- Run | Yrd Mat Min Hostile Shots Fired 84 | . 26 58 Missed 27 | . 12 15 Damage Taken 978 | . 190 788 Core 264 | . 54 210 Absorbed by Shields . | . . . Core Remaining (%) 100 | 100 . . Volleys Fired 32 | . 3 29 Largest 2 | . 2 2 Hottest 95 | . 80 95 Shots Fired 61 | . 4 57 Gun 58 | . 3 55 Cannon . | . . . Launcher 3 | . 1 2 Special . | . . . Kinetic 26 | . . 26 Thermal 32 | . 3 29 Explosive 3 | . 1 2 Electromagnetic . | . . . Robot Hit Streak 5 | . 1 5 Robot Miss Streak 4 | . 1 4 Penetration Max . | . . . Secondary Targets 1 | . . 1 Max Gunslinging Chain 1 | . . 1 Shots Hit Robots 32 | . 2 30 Core Hits 19 | . 5 14 Critical Kills . | . . . Critical Parts Destroyed . | . . . Critical Strikes . | . . . Melee Attacks . | . . . Impact . | . . . Slashing . | . . . Piercing . | . . . Sneak Attacks . | . . . Combat Hostiles . | . . . Follow-up Attacks . | . . . Damage Inflicted 902 | . 435 467 Guns 343 | . 24 319 Cannons . | . . . Explosions 558 | . 411 147 Melee . | . . . Ramming 1 | . . 1 Kinetic 120 | . . 120 Thermal 559 | . 360 199 Explosive 222 | . 75 147 Electromagnetic . | . . . Impact . | . . . Slashing . | . . . Piercing . | . . . Highest Corruption . | . . . Average Corruption . | . . . Corruption Purged . | . . . Corruption Blocked . | . . . Overload Shots . | . . . Overflow Damage 118 | . 110 8 Projectiles . | . . . Explosions 118 | . 110 8 Melee . | . . . Knockbacks . | . . . Impact . | . . . Kinetic . | . . . Secondary . | . . . Self-Inflicted Damage 128 | . 50 78 Shots 3 | . 1 2 Rammed . | . . . Targets Rammed 1 | . . 1 Kicked 1 | . . 1 Crushed . | . . . Highest Temperature 271 | . 50 271 Average Temperature 123 | . 25 132 Received Heat Transfer 333 | . 54 279 Effects 1 | . . 1 Energy Bleed 1 | . . 1 Siege Activations . | . . . Robots Corrupted . | . . . Combat Hostiles . | . . . Parts Fried . | . . . Impact Corruptions . | . . . Robots Melted . | . . . Combat Hostiles . | . . . Parts Melted . | . . . Heat Transferred 866 | . 274 592 Parts Sabotaged . | . . . Parts Stolen . | . . . Parts Stripped . | . . . Power Chain Reactions . | . . . Alert | -11 -10 -10 ------- Run | Yrd Mat Min Peak Influence 146 | . 106 146 Initial 40 | . . 40 Average 88 | . 33 126 Maximum Alert Level . | . . . Low Security (%) 100 | 100 100 100 Level 1 . | . . . Level 2 . | . . . Level 3 . | . . . Level 4 . | . . . Level 5 . | . . . High Security . | . . . Max Security . | . . . Squads Dispatched . | . . . Investigation . | . . . Extermination . | . . . Reinforcement . | . . . Assault . | . . . Garrison . | . . . Intercept . | . . . Searches Triggered . | . . . Construction Impeded . | . . . Haulers Reinforced . | . . . Active Scanning Responses . | . . . Cargo Convoy Interrupts . | . . . Stealth | -11 -10 -10 --------- Run | Yrd Mat Min Distress Signals 1 | . 1 . Communications Jammed . | . . . Distress Signals . | . . . Times Spotted 27 | . 9 18 Peak Tracking Total 20 | . 9 20 Tactical Retreats 1 | . . 1 Traps | -11 -10 -10 ------- Run | Yrd Mat Min Traps Triggered . | . . . Indirectly . | . . . Trap Hack Attempts . | . . . Triggered . | . . . Disarmed . | . . . Reprogrammed . | . . . Reused . | . . . Traps Extracted . | . . . Installed . | . . . Triggered . | . . . Machines | -11 -10 -10 ---------- Run | Yrd Mat Min Machines Disabled 2 | . 1 1 Max in Single Turn 1 | . 1 1 Machines Repaired . | . . . Machines Dismantled . | . . . Machines Sabotaged . | . . . Overloaded Fab Kills . | . . . Hacking | -11 -10 -10 --------- Run | Yrd Mat Min Machines Accessed 1 | . 1 . Terminals 1 | . 1 . Fabricators . | . . . Repair Stations . | . . . Recycling Units . | . . . Scanalyzers . | . . . Garrison Access . | . . . Total Hacks 2 | . 2 . Successful 2 | . 2 . Failed . | . . . Catastrophic . | . . . Database Lockouts . | . . . Manual 2 | . 2 . Terminals 2 | . 2 . Fabricators . | . . . Repair Stations . | . . . Recycling Units . | . . . Scanalyzers . | . . . Garrison Access . | . . . Terminal Hacks 1 | . 1 . Branch Access Points 1 | . 1 . Fabricator Hacks . | . . . Repair Station Hacks . | . . . Recycling Unit Hacks . | . . . Scanalyzer . | . . . Garrison Access Hacks . | . . . Unauthorized Hacks 1 | . 1 . Terminals 1 | . 1 . Assimilate 1 | . 1 . Fabricators . | . . . Repair Stations . | . . . Recycling Units . | . . . Scanalyzers . | . . . Garrison Access . | . . . Data Cores Recovered . | . . . Used . | . . . Hacking Detections 1 | . 1 . Full Trace Events . | . . . Feedback Events . | . . . Feedback Blocked . | . . . Robot Schematics Acquired . | . . . Robots Built . | . . . Authchips . | . . . Time . | . . . Total Robot Build Rating . | . . . Part Schematics Acquired . | . . . Parts Built . | . . . Authchips . | . . . Time . | . . . Total Part Build Rating . | . . . Parts Repaired . | . . . Time . | . . . Parts Recycled . | . . . Recycled Matter . | . . . Retrieved Matter . | . . . Retrieved Components . | . . . Parts Scanalyzed . | . . . Part Schematics Acquired . | . . . Parts Damaged . | . . . Bothacking | -11 -10 -10 ------------ Run | Yrd Mat Min Used RIF Installer . | . . . Robots Hacked . | . . . Non-combat . | . . . Combat . | . . . Robot Hacks Applied . | . . . Relay Couplers Released . | . . . Fabnet Peak Effective % . | . . . Robots Rewired . | . . . Allies Hacked . | . . . Hacks Repelled . | . . . Allies | -11 -10 -10 -------- Run | Yrd Mat Min Total Allies 1 | . 1 . Largest Group 1 | . 1 1 Highest-Rated Group 10 | . 10 10 Highest-Rated Ally 10 | . 10 10 Total Orders . | . . . Ally Attacks . | . . . Total Damage . | . . . Kills . | . . . Allies Corrupted . | . . . Allies Melted . | . . . Intel | -11 -10 -10 ------- Run | Yrd Mat Min Robot Analysis Total . | . . . Derelict Logs Recovered 1 | . . 1 Drone Launches . | . . . Drone Recoveries . | . . . Exploration | -11 -10 -10 ------------- Run | Yrd Mat Min Turns Passed 428 | 63 89 276 Spaces Moved 260 | 46 66 148 Core 9 | 9 . . Treads . | . . . Legs 251 | 37 66 148 Wheels . | . . . Hover . | . . . Flight . | . . . Fastest Speed 50 | 50 120 120 Average Speed 118 | 106 120 120 Slowest Speed 190 | 120 120 190 Overloaded Moves . | . . . Propulsion Burnouts . | . . . Robots Hopped . | . . . Cave-ins Triggered . | . . . Exploration Rate (%) 25 | 4 30 41 Regions Visited 2 Branch Regions 1 Pre-discovered Areas . | . . . Known Exits Taken 1 | . 1 . Unknown Exits Taken 1 | 1 . . Scrap Searched . | . . . Spaces Dug . | . . . Terrain Destroyed 29 | . 19 10 Melee . | . . . Projectile . | . . . AOE 29 | . 19 10 Terrain Rammed . | . . . Walls Destroyed . | . . . Machines Disabled . | . . . Actions | -11 -10 -10 --------- Run | Yrd Mat Min Total 323 | 60 71 192 Wait 7 | . 1 6 Move 258 | 45 65 148 Hop . | . . . Pick Up 12 | 9 1 2 Fast Attach . | . . . Attach 8 | 6 . 2 Detach . | . . . Swap 4 | . 1 3 Drop 1 | . . 1 Fire 32 | . 3 29 Melee . | . . . Ram . | . . . Kick 1 | . . 1 Crush . | . . . Escape Stasis . | . . . Rewire . | . . . Trap . | . . . Miscellaneous . | . . . Route ------- -11/Scrapyard -10/Materials -10/Mines History --------- Turn | Location | Event 4 | -11/Scrapyard | Discovered new exit (range 15) 64 | -11/Scrapyard | Entered Materials 94 | -10/Materials | Identified exit to Mines 153 | -10/Materials | Entered Mines 153 | -10/Mines | Accompanied by 1 ally 230 | -10/Mines | Core integrity fell below 50% 265 | -10/Mines | Core integrity fell below 20% 303 | -10/Mines | Build established: Mutant 308 | -10/Mines | Learned 2 Materials zone layouts 406 | -10/Mines | Assembled infested the area 429 | -10/Mines | Destroyed by as-69796 with Assembled Blade Last Messages --------------- 00271_ K-01 Serf collects debris. 00271_ Acquired 41 matter. 00275_ K-01 Serf collects debris. 00280_ Acquired Particle Gun. 00281_ K-01 Serf collects debris. 00282_ Dropped Med. Laser. 00282_ K-01 Serf collects debris. 00308_ Acquired derelict log, extracted data. Data stored: Materials zone layouts (x2). 00328_ T-07 Excavator is excavating. 00357_ K-01 Serf collects debris. 00406_ ALERT: Infestation in the mines, dispatching Demolisher response squad. 00412_ Kicked R-06 Scavenger. 00420_ Aluminum Leg destroyed. 00424_ as-75144 destroyed. 00424_ Grenade Launcher destroyed. 00424_ Destroyed Grenade Launcher. 00424_ Aluminum Leg destroyed. 00424_ Destroyed Aluminum Leg. Map ----- +----------------------------------------------------+ | ???????????????????????????????????????#####???# | | ???????????????????????????????????????# #???# | | ????????????????????????????????????????# #???# | | ????????????????????????????????????????# #??## | | ????????????????????????????????????????# #### | | ???????????????????????????????????????## | | ???????????????????????????????????????# | | ???????????????????????????????????????# | | ???????????????????????????????????????## ### | | ????????????????????????????????????????# ##?## | | ????????????????????????????????????????## ##???# | | ?????????????????????????????????????????####????# | | ?????????????????????????????????????????????????# | | ????????????????????????????????????????????????## | | ????????????????????????????????????????????????# | | ????????????????????????????????????????????????# | | ????????????????????????????????????????????????# | | ????????????????????????????????????????????????# | | ??????????????????????????######???????????????## | | ??????????????????????????# ????????????????# | | ??????????????????????????# ?????????????????# | | ??????????????????????????# #?????????????????# | | ??????????????????????????# ##????????????????# | | ????????????????????????### #????????????????## | | ????????????????????# ### #??????????????????# | | ????????????????????# @a #??????????######### | | ????????????????????#### a #????????## ## | | ???????????????????????####aa #?????#### | | ??????????????????????????# #?##### # | | ??????????????????????????# a#### ####### | | ??????????????????????????# a ##??#### | | ????????????????????????# ### ##???# | | ???????????????????????# #?## ##???# ## | | ???????????????????????# ??# [##### #? | | ???????????????????????# ??# % = #? | | ?????????????????????? #?## #? | | ?????????????????????### ##??### ########? | | ???????????????????????# ###?????## ##???????? | | ??????????????????????? #?????????## #????????? | | ?????????????????????? #???????????# #????????? | | ????????????????????? #????????????# #????????? | | ????????????????????? #?????????????# ????????? | | ???????????????????? #??????????????# #???????? | | ????????????????????????????????????? ##???????? | | ????????????????????????????????????? #????????? | | ???????????????????????????????????? #????????? | | ???????????????????????????????????? ?????????? | | ???????????????????????????????????? #?????????? | | ????????????????????????????????????? #??????????? | | ?????????????????????????????????????????????????? | +----------------------------------------------------+ Best States ------------- Heat Dissipation 25 Energy Generation 10 Energy Capacity 250 Matter Stores 299 Matter Capacity 300 Sight Range 16 Terrain Scan Density 10 Evasion (%) 55 Item Schematics ----------------- None Robot Schematics ------------------ None Fabricated ------------ Nothing Alien Tech Used ----------------- None Achievements -------------- None Challenges ------------ None Game ------ Seed CryofiberHeavySword Manual? 0 Play Time 00:10:53 Cumulative 20.9 hours Start 2024.08.27 @ 14:47:50 End 2024.08.27 @ 14:58:46 Sessions 1 Manual Loads 0 Difficulty Rogue Special Mode None Game No. 16 Rogue 16 Adventurer 0 Explorer 0 Win Type - Total 0 Types 0/0/0/0/0/0/0/0/0 Lore% 4 Gallery% 18 Achievement% 18 Wizard Run 0 Options --------- Layout 1 ASCII 0 Keyboard 0 Movement Arrows Keybinds 0 Fullscreen 1 Font 24/Smallcaps Map View 50x35 Zoom Use 0% Tactical HUD 1 Map Filters NONE Filters NONE Steam 1 RUN: 9c1983c1-83a4-4a55-b961-3a687c4e8a26